[Event "Late-Titled-Tuesday-Blitz-September-26-2023"]
[Site "Chess.com"]
[Date "2023.09.26"]
[Round "5"]
[White "SpeedofLight0"]
[Black "MITerryble"]
[Result "1/2-1/2"]
[WhiteElo "3055"]
[BlackElo "2941"]
[TimeControl "180+1"]
[EndTime "14:48:53 PDT"]
[Termination "Game drawn by repetition"]

1. e4 {[%clk 0:03:00.9]} 1... e6 {[%clk 0:03:00]} 2. d4 {[%clk 0:03:00.7]} 2...
d5 {[%clk 0:03:00.6]} 3. e5 {[%clk 0:03:00]} 3... c5 {[%clk 0:03:00.7]} 4. c3
{[%clk 0:03:00.7]} 4... Qb6 {[%clk 0:03:00.9]} 5. Nf3 {[%clk 0:03:01.1]} 5...
Bd7 {[%clk 0:03:01.5]} 6. Bd3 {[%clk 0:03:01.1]} 6... cxd4 {[%clk 0:03:00.8]} 7.
cxd4 {[%clk 0:02:59.5]} 7... Nc6 {[%clk 0:03:00.8]} 8. Be2 {[%clk 0:02:54]} 8...
Nge7 {[%clk 0:02:57]} 9. Nc3 {[%clk 0:02:42.5]} 9... Nf5 {[%clk 0:02:57.2]} 10.
Na4 {[%clk 0:02:42.8]} 10... Qa5+ {[%clk 0:02:52.2]} 11. Nc3 {[%clk 0:02:37.6]}
11... Qb6 {[%clk 0:02:50.7]} 12. Na4 {[%clk 0:02:37.2]} 12... Qa5+ {[%clk
0:02:46.7]} 13. Nc3 {[%clk 0:02:25.4]} 13... Qb6 {[%clk 0:02:46.4]} 1/2-1/2

[Event "Late-Titled-Tuesday-Blitz-September-26-2023"]
[Site "Chess.com"]
[Date "2023.09.26"]
[Round "5"]
[White "DvaHrasta"]
[Black "melissa_guez"]
[Result "1-0"]
[WhiteElo "2513"]
[BlackElo "2169"]
[TimeControl "180+1"]
[EndTime "14:50:43 PDT"]
[Termination "DvaHrasta won by resignation"]

1. c4 {[%clk 0:03:00.9]} 1... c5 {[%clk 0:02:57.4]} 2. g3 {[%clk 0:03:00.9]}
2... d5 {[%clk 0:02:56.4]} 3. cxd5 {[%clk 0:03:00.1]} 3... Qxd5 {[%clk
0:02:57.3]} 4. Nf3 {[%clk 0:03:00]} 4... e5 {[%clk 0:02:54.4]} 5. Nc3 {[%clk
0:02:59.5]} 5... Qd6 {[%clk 0:02:50.5]} 6. Bg2 {[%clk 0:02:57.4]} 6... Nc6
{[%clk 0:02:49.4]} 7. O-O {[%clk 0:02:56.9]} 7... Nf6 {[%clk 0:02:45.1]} 8. d3
{[%clk 0:02:56.8]} 8... a6 {[%clk 0:02:41.1]} 9. Bg5 {[%clk 0:02:56]} 9... Be7
{[%clk 0:02:37.1]} 10. Rc1 {[%clk 0:02:54.3]} 10... Nd7 {[%clk 0:02:12.3]} 11.
Bxe7 {[%clk 0:02:43.5]} 11... Qxe7 {[%clk 0:01:49.2]} 12. Nd5 {[%clk 0:02:42.9]}
12... Qd6 {[%clk 0:01:48.4]} 13. Nd2 {[%clk 0:02:42.6]} 13... O-O {[%clk
0:01:08.2]} 14. Ne4 {[%clk 0:02:41.2]} 14... Qg6 {[%clk 0:00:59]} 15. Nxc5
{[%clk 0:02:39.1]} 15... Nxc5 {[%clk 0:00:58.5]} 16. Rxc5 {[%clk 0:02:39]} 16...
Be6 {[%clk 0:00:57.5]} 17. Rxc6 {[%clk 0:02:38.2]} 1-0

[Event "Late-Titled-Tuesday-Blitz-September-26-2023"]
[Site "Chess.com"]
[Date "2023.09.26"]
[Round "5"]
[White "JoshWeinstein"]
[Black "PNEPaul"]
[Result "1-0"]
[WhiteElo "2343"]
[BlackElo "1947"]
[TimeControl "180+1"]
[EndTime "14:51:04 PDT"]
[Termination "JoshWeinstein won by checkmate"]

1. e4 {[%clk 0:03:00.9]} 1... e5 {[%clk 0:02:59.2]} 2. Nc3 {[%clk 0:03:01.6]}
2... Nc6 {[%clk 0:02:59.3]} 3. f4 {[%clk 0:03:02]} 3... Bc5 {[%clk 0:02:58.7]}
4. Nf3 {[%clk 0:03:02]} 4... d6 {[%clk 0:02:58.9]} 5. Na4 {[%clk 0:03:01.4]}
5... Bg4 {[%clk 0:02:56.8]} 6. Nxc5 {[%clk 0:02:58.5]} 6... dxc5 {[%clk
0:02:56.8]} 7. Bb5 {[%clk 0:02:58.2]} 7... Nf6 {[%clk 0:02:51.5]} 8. d3 {[%clk
0:02:56.3]} 8... O-O {[%clk 0:02:49.8]} 9. Bxc6 {[%clk 0:02:55.6]} 9... bxc6
{[%clk 0:02:49.6]} 10. h3 {[%clk 0:02:48.2]} 10... Bxf3 {[%clk 0:02:48.8]} 11.
Qxf3 {[%clk 0:02:47.8]} 11... exf4 {[%clk 0:02:46.7]} 12. Bxf4 {[%clk
0:02:46.8]} 12... Rb8 {[%clk 0:02:32.3]} 13. O-O-O {[%clk 0:02:40.8]} 13... Qd4
{[%clk 0:02:23.5]} 14. c3 {[%clk 0:02:41]} 14... Qa4 {[%clk 0:02:23]} 15. a3
{[%clk 0:02:39.6]} 15... Rxb2 {[%clk 0:02:09.3]} 16. Kxb2 {[%clk 0:02:30]} 16...
Rb8+ {[%clk 0:02:07.5]} 17. Kc1 {[%clk 0:02:30.5]} 17... Qb3 {[%clk 0:01:54.4]}
18. Kd2 {[%clk 0:02:30.3]} 18... Qb2+ {[%clk 0:01:53.9]} 19. Ke3 {[%clk
0:02:30.7]} 19... Qxc3 {[%clk 0:01:47.6]} 20. Kf2 {[%clk 0:02:24]} 20... Rb2+
{[%clk 0:01:43.2]} 21. Kg3 {[%clk 0:02:24.2]} 21... Nd7 {[%clk 0:01:30.6]} 22.
Bxc7 {[%clk 0:02:11.3]} 22... Ne5 {[%clk 0:01:29.8]} 23. Qf5 {[%clk 0:02:04.8]}
23... Qc2 {[%clk 0:01:21.2]} 24. Qc8# {[%clk 0:02:03.9]} 1-0

[Event "Late-Titled-Tuesday-Blitz-September-26-2023"]
[Site "Chess.com"]
[Date "2023.09.26"]
[Round "5"]
[White "Jaka_Brilej"]
[Black "Kombinator01"]
[Result "0-1"]
[WhiteElo "2512"]
[BlackElo "2431"]
[TimeControl "180+1"]
[EndTime "14:51:10 PDT"]
[Termination "Kombinator01 won by checkmate"]

1. e4 {[%clk 0:03:00.9]} 1... e5 {[%clk 0:02:59.2]} 2. Nf3 {[%clk 0:03:00.5]}
2... Nf6 {[%clk 0:02:59.8]} 3. d4 {[%clk 0:02:55.5]} 3... Nxe4 {[%clk
0:02:59.4]} 4. Bd3 {[%clk 0:02:53.3]} 4... Nc6 {[%clk 0:02:47.7]} 5. Bxe4 {[%clk
0:02:34.6]} 5... d5 {[%clk 0:02:48.1]} 6. Bxd5 {[%clk 0:02:33.5]} 6... Qxd5
{[%clk 0:02:47.4]} 7. Nc3 {[%clk 0:02:31.6]} 7... Bb4 {[%clk 0:02:47.7]} 8. dxe5
{[%clk 0:02:32.1]} 8... Bxc3+ {[%clk 0:02:42.8]} 9. bxc3 {[%clk 0:02:31.2]} 9...
Qxd1+ {[%clk 0:02:43.4]} 10. Kxd1 {[%clk 0:02:32.1]} 10... Bg4 {[%clk
0:02:43.4]} 11. Bf4 {[%clk 0:02:30.4]} 11... O-O-O+ {[%clk 0:02:43.8]} 12. Kc1
{[%clk 0:02:30.5]} 12... Rhe8 {[%clk 0:02:44]} 13. Re1 {[%clk 0:02:25.6]} 13...
Rd5 {[%clk 0:02:38]} 14. Bg3 {[%clk 0:02:04.5]} 14... Bxf3 {[%clk 0:02:01]} 15.
gxf3 {[%clk 0:02:04.3]} 15... Nxe5 {[%clk 0:02:01.6]} 16. Kb2 {[%clk 0:02:00]}
16... Rb5+ {[%clk 0:01:59.4]} 17. Ka3 {[%clk 0:01:55.7]} 17... Re6 {[%clk
0:01:50.2]} 18. Ka4 {[%clk 0:01:44.7]} 18... Rb2 {[%clk 0:01:37.7]} 19. Ka3
{[%clk 0:01:40.5]} 19... Nc4+ {[%clk 0:01:35.4]} 20. Ka4 {[%clk 0:01:39.7]}
20... b5# {[%clk 0:01:32.5]} 0-1

[Event "Late-Titled-Tuesday-Blitz-September-26-2023"]
[Site "Chess.com"]
[Date "2023.09.26"]
[Round "5"]
[White "WPWPWP-2015"]
[Black "MergenKakabaev"]
[Result "1-0"]
[WhiteElo "2503"]
[BlackElo "2651"]
[TimeControl "180+1"]
[EndTime "14:51:15 PDT"]
[Termination "WPWPWP-2015 won by resignation"]

1. e4 {[%clk 0:03:00.9]} 1... e6 {[%clk 0:02:59.9]} 2. d4 {[%clk 0:03:00.5]}
2... d5 {[%clk 0:03:00.4]} 3. Nc3 {[%clk 0:03:00.9]} 3... Nf6 {[%clk 0:03:00.5]}
4. Bg5 {[%clk 0:02:58.2]} 4... Bb4 {[%clk 0:03:00.6]} 5. Ne2 {[%clk 0:02:55.6]}
5... h6 {[%clk 0:02:59.3]} 6. Bxf6 {[%clk 0:02:52.7]} 6... Qxf6 {[%clk
0:02:59.3]} 7. a3 {[%clk 0:02:52.7]} 7... Bxc3+ {[%clk 0:02:59.1]} 8. Nxc3
{[%clk 0:02:52.6]} 8... c6 {[%clk 0:02:59.4]} 9. Qd2 {[%clk 0:02:47.9]} 9... O-O
{[%clk 0:02:59.4]} 10. O-O-O {[%clk 0:02:46.9]} 10... dxe4 {[%clk 0:02:58.2]}
11. Nxe4 {[%clk 0:02:46.2]} 11... Qe7 {[%clk 0:02:59.1]} 12. Bd3 {[%clk
0:02:44.6]} 12... Nd7 {[%clk 0:02:58.8]} 13. f4 {[%clk 0:02:39]} 13... Nf6
{[%clk 0:02:58.8]} 14. Nf2 {[%clk 0:02:33.1]} 14... b6 {[%clk 0:02:58.6]} 15. g4
{[%clk 0:02:31.7]} 15... Nd5 {[%clk 0:02:58.5]} 16. g5 {[%clk 0:02:28.4]} 16...
h5 {[%clk 0:02:57.8]} 17. Rhg1 {[%clk 0:02:21.2]} 17... g6 {[%clk 0:02:57.4]}
18. Ne4 {[%clk 0:02:20]} 18... Kg7 {[%clk 0:02:48.4]} 19. c4 {[%clk 0:02:18.6]}
19... Nc7 {[%clk 0:02:48.8]} 20. Qe3 {[%clk 0:02:07.6]} 20... Bb7 {[%clk
0:02:48.1]} 21. Nf6 {[%clk 0:01:54.5]} 21... Ne8 {[%clk 0:02:47.7]} 22. f5
{[%clk 0:01:36.2]} 22... Qd6 {[%clk 0:02:44.3]} 23. c5 {[%clk 0:01:16.5]} 23...
Qc7 {[%clk 0:02:31.3]} 24. Nxh5+ {[%clk 0:01:07.9]} 24... gxh5 {[%clk
0:02:30.4]} 25. f6+ {[%clk 0:01:08.2]} 25... Kh8 {[%clk 0:02:23.5]} 26. Qe4
{[%clk 0:01:07.2]} 1-0

[Event "Late-Titled-Tuesday-Blitz-September-26-2023"]
[Site "Chess.com"]
[Date "2023.09.26"]
[Round "5"]
[White "zajka-molotok"]
[Black "Sulthankan"]
[Result "1-0"]
[WhiteElo "2559"]
[BlackElo "2333"]
[TimeControl "180+1"]
[EndTime "14:51:16 PDT"]
[Termination "zajka-molotok won by resignation"]

1. e4 {[%clk 0:03:00.9]} 1... c5 {[%clk 0:03:00]} 2. Nf3 {[%clk 0:03:00.3]} 2...
d6 {[%clk 0:03:00.5]} 3. Bb5+ {[%clk 0:03:00.1]} 3... Bd7 {[%clk 0:03:00.4]} 4.
Bxd7+ {[%clk 0:02:59.3]} 4... Nxd7 {[%clk 0:03:01.3]} 5. O-O {[%clk 0:02:58.1]}
5... Ngf6 {[%clk 0:03:01.3]} 6. Re1 {[%clk 0:02:57.3]} 6... e6 {[%clk 0:02:56]}
7. c3 {[%clk 0:02:56.6]} 7... Be7 {[%clk 0:02:56.9]} 8. d4 {[%clk 0:02:57]} 8...
O-O {[%clk 0:02:57.8]} 9. e5 {[%clk 0:02:48.1]} 9... Ne8 {[%clk 0:02:55.3]} 10.
Bf4 {[%clk 0:02:41.1]} 10... cxd4 {[%clk 0:02:54.9]} 11. cxd4 {[%clk 0:02:42]}
11... dxe5 {[%clk 0:02:55.4]} 12. dxe5 {[%clk 0:02:41.8]} 12... Nc7 {[%clk
0:02:56]} 13. Nc3 {[%clk 0:02:41.2]} 13... Nb6 {[%clk 0:02:54.8]} 14. Qb3 {[%clk
0:02:39.2]} 14... Ncd5 {[%clk 0:02:36]} 15. Rad1 {[%clk 0:02:38.3]} 15... Qc8
{[%clk 0:02:30.7]} 16. Nxd5 {[%clk 0:02:28.1]} 16... Nxd5 {[%clk 0:02:30.5]} 17.
Bg3 {[%clk 0:02:23.5]} 17... a5 {[%clk 0:02:13.6]} 18. Nd4 {[%clk 0:02:14.7]}
18... Bb4 {[%clk 0:02:09.6]} 19. Re2 {[%clk 0:02:01.5]} 19... Rd8 {[%clk
0:02:03.7]} 20. Nb5 {[%clk 0:01:46.7]} 20... a4 {[%clk 0:01:53.5]} 21. Qf3
{[%clk 0:01:40]} 21... Qc2 {[%clk 0:01:46.6]} 22. Rxc2 {[%clk 0:01:38.3]} 1-0

[Event "Late-Titled-Tuesday-Blitz-September-26-2023"]
[Site "Chess.com"]
[Date "2023.09.26"]
[Round "5"]
[White "JM2005GM"]
[Black "AlexPapasimakopoulos"]
[Result "0-1"]
[WhiteElo "2490"]
[BlackElo "2712"]
[TimeControl "180+1"]
[EndTime "14:51:29 PDT"]
[Termination "AlexPapasimakopoulos won by resignation"]

1. e4 {[%clk 0:03:00.9]} 1... e6 {[%clk 0:02:23.7]} 2. d4 {[%clk 0:02:55.7]}
2... d5 {[%clk 0:02:22.1]} 3. e5 {[%clk 0:02:56.2]} 3... Bd7 {[%clk 0:02:18.9]}
4. Nf3 {[%clk 0:02:45.6]} 4... a6 {[%clk 0:02:19]} 5. a4 {[%clk 0:02:38.8]} 5...
c5 {[%clk 0:02:18.6]} 6. c3 {[%clk 0:02:35.5]} 6... Nc6 {[%clk 0:02:16.3]} 7.
Be2 {[%clk 0:02:30.4]} 7... Qb6 {[%clk 0:02:15.1]} 8. O-O {[%clk 0:02:30.1]}
8... cxd4 {[%clk 0:02:09.9]} 9. cxd4 {[%clk 0:02:29.3]} 9... Nge7 {[%clk
0:02:09.4]} 10. Nc3 {[%clk 0:02:27.4]} 10... Nf5 {[%clk 0:02:09.3]} 11. g4
{[%clk 0:02:22.9]} 11... Nfxd4 {[%clk 0:02:06.4]} 12. Nxd4 {[%clk 0:02:19.2]}
12... Nxd4 {[%clk 0:01:58.1]} 13. Be3 {[%clk 0:02:19.1]} 13... Nxe2+ {[%clk
0:01:58.1]} 14. Qxe2 {[%clk 0:02:20]} 14... d4 {[%clk 0:01:54]} 15. a5 {[%clk
0:02:20.4]} 15... Qa7 {[%clk 0:01:51.8]} 16. Rfd1 {[%clk 0:02:05]} 16... dxe3
{[%clk 0:01:49.9]} 17. Qc4 {[%clk 0:01:55.5]} 17... exf2+ {[%clk 0:01:49.2]} 18.
Kf1 {[%clk 0:01:56.1]} 18... Bc6 {[%clk 0:01:38.2]} 19. b4 {[%clk 0:01:48.9]}
19... Rc8 {[%clk 0:01:26.9]} 20. Qd3 {[%clk 0:01:36.8]} 20... Bxb4 {[%clk
0:01:23.9]} 0-1

[Event "Late-Titled-Tuesday-Blitz-September-26-2023"]
[Site "Chess.com"]
[Date "2023.09.26"]
[Round "5"]
[White "Alphafischer2019"]
[Black "Good_Knight_Kiss"]
[Result "1-0"]
[WhiteElo "2586"]
[BlackElo "2423"]
[TimeControl "180+1"]
[EndTime "14:51:40 PDT"]
[Termination "Alphafischer2019 won by resignation"]

1. Nf3 {[%clk 0:03:00.9]} 1... Nf6 {[%clk 0:02:59.7]} 2. g3 {[%clk 0:03:00.9]}
2... g6 {[%clk 0:02:59.4]} 3. Bg2 {[%clk 0:03:01.7]} 3... Bg7 {[%clk 0:02:58.9]}
4. O-O {[%clk 0:03:01.7]} 4... O-O {[%clk 0:02:58.6]} 5. c4 {[%clk 0:03:02.4]}
5... d6 {[%clk 0:02:58.6]} 6. d4 {[%clk 0:03:01.5]} 6... Nbd7 {[%clk 0:02:58.2]}
7. Nc3 {[%clk 0:03:01.3]} 7... e5 {[%clk 0:02:58.2]} 8. e4 {[%clk 0:03:01.3]}
8... c6 {[%clk 0:02:58.2]} 9. Re1 {[%clk 0:02:56.7]} 9... Qb6 {[%clk 0:02:57.2]}
10. d5 {[%clk 0:02:47]} 10... cxd5 {[%clk 0:02:41]} 11. cxd5 {[%clk 0:02:29.5]}
11... Ng4 {[%clk 0:02:22]} 12. Qe2 {[%clk 0:02:27.3]} 12... f5 {[%clk
0:02:21.4]} 13. h3 {[%clk 0:02:24.3]} 13... Ngf6 {[%clk 0:02:17.7]} 14. Be3
{[%clk 0:02:23.2]} 14... Qb4 {[%clk 0:01:25.5]} 15. a3 {[%clk 0:02:18.1]} 15...
Qb3 {[%clk 0:01:21]} 16. Nd2 {[%clk 0:02:17.7]} 16... Qxb2 {[%clk 0:01:20.4]}
17. Nb5 {[%clk 0:01:47.5]} 17... Nxe4 {[%clk 0:01:05.3]} 18. Nxe4 {[%clk
0:01:45.6]} 18... fxe4 {[%clk 0:01:05.4]} 19. Qxb2 {[%clk 0:01:44.8]} 1-0

[Event "Late-Titled-Tuesday-Blitz-September-26-2023"]
[Site "Chess.com"]
[Date "2023.09.26"]
[Round "5"]
[White "Mesa_1"]
[Black "stregachess"]
[Result "1-0"]
[WhiteElo "2619"]
[BlackElo "2092"]
[TimeControl "180+1"]
[EndTime "14:52:03 PDT"]
[Termination "Mesa_1 won by checkmate"]

1. e4 {[%clk 0:02:56.2]} 1... c5 {[%clk 0:02:59.3]} 2. Nf3 {[%clk 0:02:55.9]}
2... d6 {[%clk 0:02:59.5]} 3. Nc3 {[%clk 0:02:56.8]} 3... g6 {[%clk 0:02:57.3]}
4. d4 {[%clk 0:02:57.7]} 4... cxd4 {[%clk 0:02:56.5]} 5. Nxd4 {[%clk 0:02:58.5]}
5... Bg7 {[%clk 0:02:56.4]} 6. Be3 {[%clk 0:02:59.3]} 6... Nc6 {[%clk
0:02:56.1]} 7. f3 {[%clk 0:02:59.8]} 7... Nf6 {[%clk 0:02:55.8]} 8. Qd2 {[%clk
0:03:00.4]} 8... O-O {[%clk 0:02:55.1]} 9. O-O-O {[%clk 0:03:01.1]} 9... Nxd4
{[%clk 0:02:55.1]} 10. Bxd4 {[%clk 0:03:01.2]} 10... Be6 {[%clk 0:02:55.4]} 11.
Kb1 {[%clk 0:03:02]} 11... a6 {[%clk 0:02:44]} 12. h4 {[%clk 0:03:00.9]} 12...
Rc8 {[%clk 0:02:17.1]} 13. h5 {[%clk 0:03:00.9]} 13... b5 {[%clk 0:02:16.9]} 14.
g4 {[%clk 0:02:56.5]} 14... b4 {[%clk 0:02:12.5]} 15. Nd5 {[%clk 0:02:56.3]}
15... Bxd5 {[%clk 0:01:50]} 16. exd5 {[%clk 0:02:55.6]} 16... a5 {[%clk
0:01:40.7]} 17. hxg6 {[%clk 0:02:55.7]} 17... fxg6 {[%clk 0:01:37.1]} 18. Bd3
{[%clk 0:02:56.3]} 18... a4 {[%clk 0:01:25.5]} 19. Qh2 {[%clk 0:02:56.1]} 19...
b3 {[%clk 0:00:48.4]} 20. cxb3 {[%clk 0:02:53.7]} 20... axb3 {[%clk 0:00:46.6]}
21. a3 {[%clk 0:02:54.3]} 21... Rc2 {[%clk 0:00:40.1]} 22. Bxc2 {[%clk
0:02:53.7]} 22... bxc2+ {[%clk 0:00:40.2]} 23. Qxc2 {[%clk 0:02:54.6]} 23... Qb8
{[%clk 0:00:32]} 24. Bc3 {[%clk 0:02:52.6]} 24... Rc8 {[%clk 0:00:31.5]} 25. Qd3
{[%clk 0:02:49.2]} 25... Qb6 {[%clk 0:00:17.8]} 26. Rhe1 {[%clk 0:02:48.5]}
26... Rc7 {[%clk 0:00:17.6]} 27. Bd4 {[%clk 0:02:49]} 27... Qb8 {[%clk
0:00:15.7]} 28. g5 {[%clk 0:02:49.5]} 28... Nh5 {[%clk 0:00:15]} 29. Bxg7 {[%clk
0:02:49.6]} 29... Nxg7 {[%clk 0:00:15.3]} 30. Rc1 {[%clk 0:02:49.7]} 30... Rb7
{[%clk 0:00:14.9]} 31. b4 {[%clk 0:02:48.5]} 31... Nf5 {[%clk 0:00:13.8]} 32.
Rc4 {[%clk 0:02:48.8]} 32... Qa8 {[%clk 0:00:13.2]} 33. Rec1 {[%clk 0:02:48.8]}
33... Qa7 {[%clk 0:00:12.8]} 34. Rc8+ {[%clk 0:02:47.9]} 34... Kg7 {[%clk
0:00:13.2]} 35. Qc3+ {[%clk 0:02:48.5]} 35... Kf7 {[%clk 0:00:12.2]} 36. Qh8
{[%clk 0:02:49.2]} 36... Qxa3 {[%clk 0:00:09.6]} 37. Qf8# {[%clk 0:02:48.6]} 1-0

[Event "Late-Titled-Tuesday-Blitz-September-26-2023"]
[Site "Chess.com"]
[Date "2023.09.26"]
[Round "5"]
[White "Dhaydon19"]
[Black "Roedor"]
[Result "1/2-1/2"]
[WhiteElo "2740"]
[BlackElo "2389"]
[TimeControl "180+1"]
[EndTime "14:52:32 PDT"]
[Termination "Game drawn by repetition"]

1. d4 {[%clk 0:03:00.9]} 1... Nf6 {[%clk 0:02:59.7]} 2. Nc3 {[%clk 0:03:01.3]}
2... d5 {[%clk 0:02:59.4]} 3. Bf4 {[%clk 0:03:01.5]} 3... g6 {[%clk 0:02:59.6]}
4. e3 {[%clk 0:03:01.2]} 4... Bg7 {[%clk 0:02:59.7]} 5. Nb5 {[%clk 0:03:00.4]}
5... Na6 {[%clk 0:02:59.3]} 6. c3 {[%clk 0:02:59.8]} 6... O-O {[%clk 0:02:56.5]}
7. Nf3 {[%clk 0:02:58.8]} 7... c5 {[%clk 0:02:56.1]} 8. Na3 {[%clk 0:02:57.5]}
8... Nb8 {[%clk 0:02:39.1]} 9. dxc5 {[%clk 0:02:46.9]} 9... Ne4 {[%clk
0:02:38.7]} 10. Be2 {[%clk 0:02:42.8]} 10... Nc6 {[%clk 0:02:36.7]} 11. h3
{[%clk 0:02:35.2]} 11... Nxc5 {[%clk 0:02:36.3]} 12. O-O {[%clk 0:02:33.6]}
12... Ne4 {[%clk 0:02:30.1]} 13. Nb5 {[%clk 0:02:32.2]} 13... a6 {[%clk
0:02:23.4]} 14. Nc7 {[%clk 0:02:25.8]} 14... e5 {[%clk 0:02:20.9]} 15. Nxa8
{[%clk 0:02:20.8]} 15... exf4 {[%clk 0:02:20.7]} 16. Qb3 {[%clk 0:02:14.8]}
16... Be6 {[%clk 0:01:52.1]} 17. Qxb7 {[%clk 0:02:01.9]} 17... Qxa8 {[%clk
0:01:50.4]} 18. Qxa8 {[%clk 0:02:01.7]} 18... Rxa8 {[%clk 0:01:51.3]} 19. exf4
{[%clk 0:01:59.8]} 19... Rb8 {[%clk 0:01:51.5]} 20. Rab1 {[%clk 0:01:59]} 20...
d4 {[%clk 0:01:47]} 21. cxd4 {[%clk 0:01:49]} 21... Nxd4 {[%clk 0:01:45.6]} 22.
Nxd4 {[%clk 0:01:48.2]} 22... Bxd4 {[%clk 0:01:46.5]} 23. Rbd1 {[%clk
0:01:36.2]} 23... Rxb2 {[%clk 0:01:43.4]} 24. Rxd4 {[%clk 0:01:22.8]} 24... Rxe2
{[%clk 0:01:43]} 25. f3 {[%clk 0:01:22.2]} 25... Ng3 {[%clk 0:01:30.7]} 26. Rf2
{[%clk 0:01:21.8]} 26... Re1+ {[%clk 0:01:30.8]} 27. Kh2 {[%clk 0:01:22.1]}
27... Nf1+ {[%clk 0:01:25.3]} 28. Kg1 {[%clk 0:01:21.3]} 28... Ne3+ {[%clk
0:01:11.2]} 29. Kh2 {[%clk 0:01:19.1]} 29... Nf1+ {[%clk 0:01:03.5]} 30. Kg1
{[%clk 0:01:18.4]} 30... Ne3+ {[%clk 0:00:58.1]} 31. Kh2 {[%clk 0:01:18]} 31...
Nf1+ {[%clk 0:00:58.2]} 1/2-1/2

[Event "Late-Titled-Tuesday-Blitz-September-26-2023"]
[Site "Chess.com"]
[Date "2023.09.26"]
[Round "5"]
[White "YellowJacek"]
[Black "leoduarte"]
[Result "1-0"]
[WhiteElo "2328"]
[BlackElo "2475"]
[TimeControl "180+1"]
[EndTime "14:52:38 PDT"]
[Termination "YellowJacek won by resignation"]

1. e4 {[%clk 0:03:00.9]} 1... e5 {[%clk 0:02:46.6]} 2. Nf3 {[%clk 0:02:58.4]}
2... Nc6 {[%clk 0:02:46.6]} 3. Bb5 {[%clk 0:02:53.1]} 3... a6 {[%clk 0:02:46.6]}
4. Ba4 {[%clk 0:02:53.1]} 4... Nf6 {[%clk 0:02:45.9]} 5. O-O {[%clk 0:02:47.4]}
5... b5 {[%clk 0:02:45.8]} 6. Bb3 {[%clk 0:02:42.2]} 6... Bc5 {[%clk 0:02:46.4]}
7. c3 {[%clk 0:02:41.6]} 7... d6 {[%clk 0:02:46.1]} 8. d4 {[%clk 0:02:40.9]}
8... Bb6 {[%clk 0:02:46.7]} 9. Re1 {[%clk 0:02:34]} 9... O-O {[%clk 0:02:43.3]}
10. Nbd2 {[%clk 0:02:31.5]} 10... exd4 {[%clk 0:02:38.6]} 11. cxd4 {[%clk
0:02:25.4]} 11... Nxd4 {[%clk 0:02:36.5]} 12. Nxd4 {[%clk 0:02:22.1]} 12... Bxd4
{[%clk 0:02:36.4]} 13. Nf3 {[%clk 0:02:22.6]} 13... Bb6 {[%clk 0:02:33.9]} 14.
Bg5 {[%clk 0:02:22.3]} 14... Bb7 {[%clk 0:01:46.2]} 15. Qc2 {[%clk 0:02:14.1]}
15... h6 {[%clk 0:01:40.9]} 16. Bh4 {[%clk 0:02:13]} 16... Re8 {[%clk
0:01:38.6]} 17. e5 {[%clk 0:01:58.7]} 17... Bxf3 {[%clk 0:01:20.8]} 18. Bxf6
{[%clk 0:01:54.9]} 18... gxf6 {[%clk 0:00:35.2]} 19. Qg6+ {[%clk 0:01:53.3]}
19... Kh8 {[%clk 0:00:35.8]} 20. Bxf7 {[%clk 0:01:40]} 20... Be4 {[%clk
0:00:14.4]} 21. Rxe4 {[%clk 0:01:34.4]} 1-0

[Event "Late-Titled-Tuesday-Blitz-September-26-2023"]
[Site "Chess.com"]
[Date "2023.09.26"]
[Round "5"]
[White "Dubs123"]
[Black "SaqoChess_Twitch"]
[Result "0-1"]
[WhiteElo "2355"]
[BlackElo "2634"]
[TimeControl "180+1"]
[EndTime "14:52:39 PDT"]
[Termination "SaqoChess_Twitch won by resignation"]

1. d4 {[%clk 0:03:00.9]} 1... d5 {[%clk 0:02:59.9]} 2. c4 {[%clk 0:03:00.7]}
2... e6 {[%clk 0:03:00.5]} 3. Nc3 {[%clk 0:03:00.7]} 3... Nf6 {[%clk 0:03:01.2]}
4. cxd5 {[%clk 0:03:00.7]} 4... Nxd5 {[%clk 0:03:01.1]} 5. e4 {[%clk 0:03:00.3]}
5... Nxc3 {[%clk 0:03:01.5]} 6. bxc3 {[%clk 0:03:00.6]} 6... c5 {[%clk
0:03:02.4]} 7. Nf3 {[%clk 0:03:00.5]} 7... cxd4 {[%clk 0:03:03]} 8. cxd4 {[%clk
0:03:01]} 8... Bb4+ {[%clk 0:03:03.6]} 9. Bd2 {[%clk 0:03:01.4]} 9... Bxd2+
{[%clk 0:03:04.3]} 10. Qxd2 {[%clk 0:03:01.8]} 10... O-O {[%clk 0:03:04]} 11.
Bc4 {[%clk 0:03:00.7]} 11... Nd7 {[%clk 0:03:04.5]} 12. O-O {[%clk 0:03:00.5]}
12... b6 {[%clk 0:03:05.2]} 13. Rad1 {[%clk 0:02:58.8]} 13... Bb7 {[%clk
0:03:05.4]} 14. Rfe1 {[%clk 0:02:59.1]} 14... Rc8 {[%clk 0:03:05.6]} 15. Bb3
{[%clk 0:02:58]} 15... h6 {[%clk 0:03:00.8]} 16. h3 {[%clk 0:02:55.8]} 16... Qf6
{[%clk 0:03:00.7]} 17. Re3 {[%clk 0:02:54.5]} 17... b5 {[%clk 0:02:59.7]} 18. d5
{[%clk 0:02:51.9]} 18... exd5 {[%clk 0:02:50.6]} 19. Bxd5 {[%clk 0:02:51.2]}
19... Bxd5 {[%clk 0:02:49]} 20. Qxd5 {[%clk 0:02:44.2]} 20... Nc5 {[%clk
0:02:46.1]} 21. e5 {[%clk 0:02:42.2]} 21... Qe7 {[%clk 0:02:44.9]} 22. Nd4
{[%clk 0:02:32.1]} 22... Ne6 {[%clk 0:02:34.2]} 23. Nxb5 {[%clk 0:02:19.1]}
23... Rc5 {[%clk 0:02:22.4]} 24. Qd6 {[%clk 0:01:57.9]} 24... Qg5 {[%clk
0:02:08.7]} 25. Qa6 {[%clk 0:00:52.7]} 25... Nf4 {[%clk 0:02:02.1]} 26. g4
{[%clk 0:00:15.7]} 26... Nxh3+ {[%clk 0:01:59]} 27. Kf1 {[%clk 0:00:12.9]} 27...
Qxg4 {[%clk 0:01:55.7]} 28. Rde1 {[%clk 0:00:12.1]} 28... Rc2 {[%clk 0:01:54.6]}
29. Rxh3 {[%clk 0:00:10.4]} 0-1